bitfinex-derivatives/quotes_ETHF0:USTF0_20251031
["timestamp","ask_amount","ask_price","bid_price","bid_amount"]
[1761932614244,0.94984877,3826.0,3825.9,9.378]
[1761932614638,0.3401,3825.9,3825.8,9.378]
[1761932614834,1.41742876,3825.9,3825.8,9.378]
[1761932615846,0.94667876,3825.9,3825.8,9.378]
[1761932616150,0.00317001,3826.0,3825.8,9.378]
[1761932616345,0.47391001,3826.0,3825.8,9.378]
[1761932616741,0.00317001,3826.0,3825.9,0.3179]
[1761932618349,0.1572,3826.8,3826.0,1.17683]
[1761932618557,0.60590726,3826.7,3826.6,0.3179]
[1761932618854,3.2078,3827.3,3826.8,0.47063]
[1761932619153,0.60584689,3827.2,3826.9,0.47062]
[1761932619459,0.60584689,3827.1,3826.9,0.47291282]
[1761932619652,3.2078,3827.8,3826.9,0.00229282]
[1761932619848,1.85845581,3828.8,3826.9,0.00229282]
[1761932619849,8.87770709,3828.1,3827.6,0.47054]
[1761932620154,8.40722709,3828.1,3827.7,9.84553]
[1761932620347,8.40722709,3828.1,3827.7,9.375]
[1761932620556,0.47056,3827.5,3827.3,3.2078]
[1761932620856,0.79421867,3827.5,3827.4,9.375]
[1761932621357,0.47321867,3827.5,3827.4,9.375]
[1761932622350,0.5082,3827.4,3827.3,3.2078]
[1761932622551,0.5082,3827.4,3826.9,0.00229282]
[1761932622552,0.79161,3827.0,3826.9,0.00229282]
[1761932622858,0.47074,3826.0,3825.6,3.2078]
[1761932623052,0.1872,3826.2,3825.6,3.2078]
[1761932623258,0.47076,3825.8,3825.7,9.374]
[1761932623453,0.4708,3825.6,3825.2,3.67863]
[1761932623650,0.4708,3825.6,3825.3,9.373]
[1761932623855,3.2078,3825.9,3825.3,9.373]
[1761932624260,0.47078,3825.7,3825.3,9.84382]
[1761932624445,0.1872,3826.2,3825.8,0.47075]
[1761932624758,0.1872,3827.4,3825.3,10.55005]
[1761932624759,3.2078,3827.0,3826.8,0.47064]
[1761932625060,3.2078,3827.1,3826.9,9.373]
[1761932625358,3.2078,3827.1,3827.0,9.373]
[1761932625552,3.67841,3827.1,3827.0,9.373]
[1761932625758,3.99941,3827.1,3827.0,9.373]
[1761932625958,1.36379,3826.9,3826.0,3.2078]
[1761932626147,3.67848,3826.5,3826.1,9.373]
[1761932626355,0.1872,3826.9,3826.4,0.47069]
[1761932626655,0.47067,3826.6,3826.1,3.2078]
[1761932626859,0.47067,3826.6,3826.2,9.373]
[1761932627055,0.47067,3826.6,3825.7,0.47077]
[1761932627056,0.47072,3826.2,3825.7,0.47077]
[1761932627258,0.1872,3826.9,3825.8,9.373]
[1761932627461,0.47068,3826.5,3826.1,0.47072]
[1761932627758,0.47068,3826.5,3825.8,9.373]
[1761932627966,3.2078,3826.6,3825.8,9.373]
[1761932628154,0.47065,3826.7,3826.4,3.2078]
[1761932628350,0.47059,3827.2,3826.5,9.372]
[1761932628653,3.2078,3827.3,3826.8,0.47063]
[1761932628856,3.67838,3827.3,3826.9,0.47062]
[1761932629060,0.4706,3827.1,3826.8,0.47063]
[1761932629261,0.00265867,3827.5,3827.2,0.3136]
[1761932629457,0.00265867,3827.5,3827.3,9.372]
[1761932629860,0.00265867,3827.5,3827.3,9.84257]
[1761932630558,0.00265867,3827.5,3827.0,3.2078]
[1761932630559,0.321,3827.4,3827.0,3.2078]
[1761932630758,0.321,3827.4,3826.0,1.17683]
[1761932630759,0.00265867,3827.5,3827.4,9.372]
[1761932630954,0.00265867,3827.5,3827.4,3.827]
[1761932631555,0.47061,3827.0,3826.6,0.47066]
[1761932631763,0.65783,3826.9,3826.5,3.67847]
[1761932631965,3.67836,3827.4,3827.0,0.47061]
[1761932632554,3.2078,3827.4,3827.0,0.47061]
[1761932632766,0.47058,3827.3,3827.0,0.47061]
[1761932633168,3.2078,3827.4,3826.6,10.54863]
[1761932633368,0.47056,3827.4,3827.1,0.4706]
[1761932633566,0.47056,3827.4,3827.2,9.372]
[1761932633768,0.321,3827.4,3827.3,9.372]
[1761932633971,0.4706,3827.2,3827.1,9.372]
[1761932634569,0.321,3827.2,3827.1,9.372]
[1761932634872,0.47059,3827.2,3827.1,9.372]
[1761932635758,0.79159,3827.2,3827.1,9.372]
[1761932635964,0.47071,3826.3,3826.0,3.2078]
[1761932636160,0.4707,3826.3,3826.1,9.371]
[1761932637067,0.97891,3826.2,3826.1,9.371]
[1761932638662,4.18671,3826.2,3826.1,9.371]
[1761932638872,4.5718,3826.2,3825.8,9.371]
[1761932639067,3.395,3826.2,3825.8,9.371]
[1761932639274,0.47075,3825.9,3825.8,9.371]
[1761932639773,3.395,3826.2,3825.8,9.371]
[1761932639974,3.2078,3826.6,3825.9,0.47075]
[1761932640172,0.60519933,3826.5,3825.8,9.84175]
[1761932640473,0.47074,3826.0,3825.8,9.371]
[1761932640673,3.2078,3826.1,3825.8,9.371]
[1761932641074,3.2078,3826.1,3825.2,3.20987538]
[1761932641075,1.78267251,3826.0,3825.2,3.20987538]
[1761932641271,0.4708,3825.5,3825.3,9.371]
[1761932641474,0.1872,3825.6,3825.3,9.371]
[1761932641674,0.4708,3825.5,3825.3,9.371]
[1761932642262,1.17686,3826.0,3825.4,0.3136]
[1761932642467,0.4708,3825.5,3825.4,0.3136]
[1761932643175,0.47081,3825.4,3825.3,9.371]
[1761932643582,0.47082,3825.3,3825.2,0.00207538]
[1761932644379,1.39772221,3825.3,3825.2,0.00207538]
[1761932644673,3.2078,3826.1,3825.2,0.00207538]
[1761932644866,0.47077,3825.7,3825.3,0.47082]
[1761932645073,1.17686,3826.0,3825.2,0.00207538]
[1761932645373,0.321,3825.3,3825.2,0.00207538]
[1761932645568,0.79182,3825.3,3825.2,0.00207538]
[1761932645778,3.99962,3825.3,3825.2,0.00207538]
[1761932645970,4.60550049,3825.3,3825.2,0.00207538]
[1761932646477,4.60550049,3825.3,3823.8,0.1147]
[1761932646478,4.13468049,3825.3,3823.9,3.2078]
[1761932646681,1.36417,3825.6,3823.9,3.2078]
[1761932646682,3.2078,3824.8,3824.3,0.3136]
[1761932646983,0.1872,3824.4,3823.9,3.2078]
[1761932647183,0.1872,3824.4,3824.0,9.372]
[1761932647476,0.1872,3824.4,3823.9,3.2078]
[1761932647477,0.47098,3824.0,3823.9,3.2078]
[1761932647679,4.38517,3824.3,3823.9,0.00257557]
[1761932647979,0.79198,3824.0,3823.9,0.00257557]
[1761932648181,0.79198,3824.0,3823.9,9.37457557]
[1761932648381,0.79198,3824.0,3823.9,0.00257557]
[1761932648581,0.321,3823.6,3823.5,9.372]
[1761932648875,0.1872,3823.8,3823.5,9.372]
[1761932649180,0.65821,3823.8,3823.5,9.372]
[1761932649378,3.2078,3824.0,3823.7,0.3136]
[1761932649682,3.2078,3824.0,3823.7,0.00252263]
[1761932649975,0.00200498,3824.4,3823.7,0.00252263]
[1761932650178,0.00200498,3824.4,3824.3,0.3136]
[1761932650476,3.395,3825.0,3824.7,0.47089]
[1761932650685,3.2078,3825.0,3824.7,0.47089]
[1761932650877,3.2078,3825.0,3824.4,3.2078]
[1761932650878,3.67866,3825.0,3824.4,3.2078]
[1761932651088,3.86406,3825.0,3824.4,3.2078]
[1761932651283,3.86406,3825.0,3824.5,9.373]
[1761932651478,3.86745187,3825.0,3824.6,0.47091]
[1761932651979,3.39659187,3825.0,3824.7,0.47089]
[1761932652572,3.39659187,3825.0,3824.8,0.47088]
[1761932652772,3.21119187,3825.0,3824.8,0.47088]
[1761932652973,0.00339187,3825.0,3824.9,0.3064]
[1761932653482,0.47087,3824.9,3824.4,3.2078]
[1761932653677,0.65965187,3825.0,3824.5,9.374]
[1761932653878,0.47087,3824.9,3824.5,9.84492]
[1761932654078,0.18879187,3825.0,3824.6,0.4709]
[1761932654280,0.65965187,3825.0,3824.5,9.84491]
[1761932654573,0.18879187,3825.0,3824.5,9.374]
[1761932654780,0.00339187,3825.0,3824.8,0.47088]
[1761932654980,0.00339187,3825.0,3824.6,0.4709]
[1761932655180,0.00339187,3825.0,3824.8,0.47088]
[1761932655384,0.00339187,3825.0,3824.6,0.4709]
[1761932655588,0.00339187,3825.0,3824.8,0.47087]
[1761932655787,0.00339187,3825.0,3824.9,0.3064]
[1761932656185,0.00339187,3825.0,3824.9,0.77727]
[1761932656788,0.00339187,3825.0,3824.9,10.15127]
[1761932658988,0.17329187,3825.0,3824.2,0.47095]
[1761932659187,1.17719,3824.9,3824.1,0.3012]
[1761932659497,0.74974,3824.3,3824.2,9.374]
[1761932660395,0.74974,3824.3,3823.0,1.17774]
[1761932660396,0.91971,3823.8,3823.5,3.2078]
[1761932660591,0.4487,3823.8,3823.7,9.37552263]
[1761932660798,0.91971,3823.8,3823.7,9.37552263]
[1761932661090,0.91971,3823.8,3823.7,0.00252263]
[1761932661295,0.91971,3823.8,3823.7,4.68052263]
[1761932661685,0.64091,3823.8,3823.7,4.68052263]
[1761932663398,0.1699,3823.8,3823.7,4.68052263]
[1761932663697,0.64091,3823.8,3823.7,4.68052263]
[1761932664694,0.91971,3823.8,3823.7,4.68052263]
[1761932664896,0.4487,3823.8,3823.7,4.68052263]
[1761932665094,0.1699,3823.8,3823.7,4.68052263]
[1761932665300,3.2078,3824.1,3823.7,4.98172263]
[1761932665598,0.60442249,3824.0,3823.9,0.3012]
[1761932666107,0.471,3823.9,3823.7,4.68052263]
[1761932666295,0.64091,3823.8,3823.7,4.68052263]
[1761932666499,1.52437062,3823.8,3823.7,0.00252263]
[1761932666896,1.24557062,3823.8,3823.7,0.00252263]
[1761932667900,1.52437062,3823.8,3823.7,0.00252263]
[1761932668698,0.77456062,3823.8,3823.7,0.00252263]
[1761932668899,1.52437062,3823.8,3823.7,0.00252263]
[1761932669202,1.5249596,3823.8,3823.7,0.00252263]
[1761932671698,0.1699,3823.2,3823.0,9.5581]
[1761932672204,0.64098,3823.2,3822.7,3.2078]
[1761932672393,0.60536026,3823.1,3823.0,9.374]
[1761932672596,0.60536026,3823.1,3823.0,9.37705865]
[1761932672801,0.60536026,3823.1,3823.0,10.14935865]
[1761932672999,0.60536026,3823.1,3823.0,9.67825865]
[1761932673700,0.60536026,3823.1,3823.0,10.14935865]
[1761932673905,0.60536026,3823.1,3823.0,9.67825865]
[1761932674209,1.35525026,3823.1,3823.0,0.00305865]
[1761932674407,1.35525026,3823.1,3823.0,9.37805865]
[1761932675607,0.60536026,3823.1,3823.0,9.37805865]
[1761932675800,0.60536026,3823.1,3823.0,10.15035865]
[1761932676504,0.64091,3823.8,3823.4,0.47104]
[1761932676709,0.60547783,3823.7,3823.6,0.3012]
[1761932676900,0.60547783,3823.7,3823.6,10.14623]
[1761932677597,1.07649783,3823.7,3823.6,9.6752]
[1761932678006,0.60547783,3823.7,3823.6,9.374]
[1761932678404,1.07649783,3823.7,3823.6,9.374]
[1761932678901,1.35529783,3823.7,3823.6,9.374]
[1761932679310,1.07649783,3823.7,3823.6,9.374]
[1761932680007,0.60547783,3823.7,3823.6,13.35403]
[1761932680203,0.47093,3824.4,3824.0,0.47098]
[1761932680403,3.2078,3824.6,3824.2,0.2411]
[1761932680404,0.60527241,3824.3,3824.2,0.2411]
[1761932680603,0.60527241,3824.3,3824.2,10.08606]
[1761932680806,3.2078,3825.2,3824.5,0.47091]
[1761932681116,0.60526197,3824.9,3824.8,0.2411]
[1761932681310,0.60526197,3824.9,3824.8,9.6141]
[1761932681608,1.07613197,3824.9,3824.8,9.373]
[1761932681808,1.35453197,3824.9,3824.8,9.373]
[1761932682707,1.07613197,3824.9,3824.8,9.373]
[1761932685115,1.35453197,3824.9,3824.8,9.373]
[1761932686314,0.60526197,3824.9,3824.8,10.08498]
[1761932686710,0.60526197,3824.9,3824.8,9.6141]
[1761932687319,0.60526197,3824.9,3824.8,10.08498]
[1761932687617,0.00339187,3825.0,3824.9,0.71197]
[1761932690810,0.1602,3826.0,3825.6,0.2411]
[1761932691006,0.6041412,3825.9,3825.7,9.369]
[1761932691224,0.1602,3826.0,3825.8,0.2377]
[1761932691420,0.60408884,3825.9,3825.8,0.2377]
[1761932691812,0.60408884,3825.9,3825.8,0.24054172]
[1761932691813,0.60745992,3825.9,3825.8,0.24054172]
[1761932692120,1.35660992,3825.9,3825.8,0.00284172]
[1761932692417,0.1602,3825.0,3824.9,0.47087]
[1761932692614,0.1602,3825.0,3824.9,3.81357]
[1761932692806,0.1602,3825.0,3824.9,3.3427]
[1761932693009,0.1602,3825.0,3824.9,0.2377]
[1761932693205,0.1602,3825.0,3824.9,0.23994979]
[1761932693407,0.90946,3825.0,3824.9,0.00224979]
[1761932693613,0.90946,3825.0,3824.9,7.63024979]
[1761932694914,0.63106,3825.0,3824.9,7.63024979]
[1761932697324,3.67863,3825.2,3825.1,0.2377]
[1761932697519,0.1602,3825.0,3824.9,7.86794979]
[1761932698030,0.63106,3825.0,3824.9,7.63024979]
[1761932698526,0.90946,3825.0,3824.9,9.36824979]
[1761932698825,0.90946,3825.0,3824.9,0.00224979]
[1761932699821,1.51311122,3825.0,3824.9,0.00224979]
[1761932702620,1.23471122,3825.0,3824.9,0.00224979]
[1761932703123,0.47082,3825.4,3825.0,0.47085]
[1761932703321,0.47082,3825.4,3824.9,0.00224979]
[1761932703322,0.1602,3825.5,3825.3,0.2377]
[1761932703525,0.60408161,3825.4,3825.3,0.2377]
[1761932703724,1.18026108,3825.9,3825.1,9.83584]
[1761932703725,0.00337108,3825.9,3825.4,0.2377]
[1761932703929,0.00337108,3825.9,3825.8,0.2377]
[1761932704126,0.00337108,3825.9,3825.8,9.6027]
[1761932704323,0.60752026,3825.9,3825.8,9.365]
[1761932704631,0.60752026,3825.9,3825.8,9.6027]
[1761932705120,0.00337108,3825.9,3825.5,0.2377]
[1761932705326,0.1602,3825.5,3825.2,3.33]
[1761932705520,0.47081,3825.4,3825.2,3.33]
[1761932705722,0.47081,3825.4,3825.3,0.2377]
[1761932706027,0.00337108,3825.9,3825.4,0.70851]
[1761932706226,0.47077,3825.7,3825.6,0.2377]
[1761932706528,0.60439207,3825.7,3825.6,0.2377]
[1761932706729,0.47076,3825.8,3825.7,0.2377]
[1761932706930,1.07542599,3825.8,3825.7,0.2377]
[1761932707128,0.60466599,3825.8,3825.7,0.2377]
[1761932707318,0.00337108,3825.9,3825.8,0.2377]
[1761932707523,0.60820335,3825.9,3825.8,9.73046]
[1761932707732,0.60820335,3825.9,3825.8,9.2597]
[1761932708032,1.07895335,3825.9,3825.8,9.2597]
[1761932708431,0.60820335,3825.9,3825.8,9.2597]
[1761932708726,0.60820335,3825.9,3825.8,9.73046]
[1761932708928,0.60820335,3825.9,3825.8,9.2597]
[1761932709130,1.07895335,3825.9,3825.8,9.2597]
[1761932709444,0.60820335,3825.9,3825.8,9.73046]
[1761932710128,3.368,3826.5,3826.4,0.1573]
[1761932710431,3.97308709,3826.5,3826.4,9.5193]
[1761932710633,0.60508709,3826.5,3826.4,9.98999]
[1761932710823,0.63082,3827.0,3826.7,0.47065]
[1761932711025,0.60508625,3826.9,3826.7,0.47065]
[1761932711331,0.16304143,3827.0,3826.8,0.1539]
[1761932711528,0.61257,3826.5,3826.4,12.5698]
[1761932711726,0.1419,3826.5,3826.4,3.2078]
[1761932711931,0.1419,3826.5,3826.4,12.5688]
[1761932712124,0.1419,3826.5,3826.4,13.19339]
[1761932712433,0.1419,3826.5,3826.4,12.7227]
[1761932712831,0.00284143,3827.0,3826.9,0.62452]
[1761932713034,3.2078,3827.7,3826.9,9.361]
[1761932713223,0.63069,3828.0,3827.6,0.62164]
[1761932713422,0.60371978,3827.9,3827.6,9.98164]
[1761932713627,0.60371978,3827.8,3827.6,9.98164]
[1761932713831,0.47051,3827.9,3827.6,9.36]
[1761932714025,0.1602,3828.0,3827.6,9.36]
[1761932714223,0.00334773,3827.9,3827.7,0.47052]
[1761932714433,0.00334773,3827.9,3827.6,9.36262705]
[1761932714627,0.00334773,3827.9,3827.6,9.83316705]
[1761932714823,0.00334773,3827.9,3827.8,0.1511]
[1761932715429,3.3497,3829.0,3827.7,3.2078]
[1761932715627,0.47042,3828.6,3828.5,0.1511]
[1761932715834,0.47044,3828.4,3827.9,3.2078]
[1761932716133,3.3497,3828.6,3828.0,4.247]
[1761932716337,0.1419,3828.0,3827.9,3.2078]
[1761932716536,0.1419,3828.0,3827.9,12.5658]
[1761932716728,0.14436226,3828.0,3827.9,12.5658]
[1761932717331,0.00246226,3828.0,3827.9,13.1874]
[1761932718427,0.00246226,3828.0,3827.9,12.7169]
[1761932719431,0.00246226,3828.0,3827.9,12.7139]
[1761932720428,0.13966226,3828.0,3827.9,3.2078]
[1761932720634,0.13966226,3828.0,3827.9,12.5628]
[1761932721035,0.13966226,3828.0,3827.9,9.355]
[1761932721036,0.36916226,3828.0,3827.9,9.355]
[1761932721238,0.47053,3827.7,3827.6,0.00262705]
[1761932721440,0.47053,3827.7,3827.6,9.35662705]
[1761932721637,0.47053,3827.8,3827.6,9.35662705]
[1761932721951,0.13966226,3828.0,3827.6,9.35662705]
[1761932722336,0.61015226,3828.0,3827.6,9.35662705]
[1761932722543,0.13966226,3828.0,3827.7,9.354]
[1761932723747,0.4705,3827.9,3827.7,9.354]
[1761932723951,0.61015226,3828.0,3827.7,9.354]
[1761932724646,0.47051,3827.9,3827.7,9.354]
[1761932724948,0.13966226,3828.0,3827.7,9.354]
[1761932725135,0.13966226,3828.0,3827.6,0.00262705]
[1761932725341,0.47052,3827.8,3827.7,3.239]
[1761932725537,0.61016226,3828.0,3827.7,9.353]
[1761932725842,0.13966226,3828.0,3827.9,0.1315]
[1761932726043,0.00246226,3828.0,3827.9,0.1315]
[1761932726443,3.2078,3829.3,3828.2,1.17614]
[1761932726644,3.2078,3829.3,3828.7,0.4704]
[1761932726943,3.2078,3829.3,3828.5,3.2078]
[1761932726944,0.61227,3829.0,3828.8,9.352]
[1761932727146,0.1419,3829.0,3828.8,9.82239]
[1761932727348,0.1419,3829.0,3828.8,9.352]
[1761932727640,0.14516554,3829.0,3828.8,9.352]
[1761932728045,0.14516554,3829.0,3828.8,9.82239]
[1761932728745,0.00326554,3829.0,3828.9,3.80968]
[1761932729444,0.00326554,3829.0,3828.9,3.3393]
[1761932730539,0.025,3829.7,3829.6,0.59849]
[1761932730842,0.025,3829.7,3829.6,9.4782]
[1761932731045,0.72478,3829.7,3829.6,9.35]
[1761932731437,0.1372,3829.2,3828.8,3.2078]
[1761932731644,0.47036,3829.1,3828.9,9.349]
[1761932731842,0.13979962,3829.2,3829.1,0.1282]
[1761932732346,0.47037,3829.0,3828.8,3.2078]
[1761932732545,0.47037,3829.0,3828.9,9.349]
[1761932735053,0.60762,3828.6,3828.4,9.348]
[1761932735242,0.59763259,3828.5,3828.4,9.348]
[1761932735443,0.1372,3828.6,3828.4,9.348]
[1761932735649,0.1372,3828.6,3827.8,3.2078]
[1761932735847,0.1372,3828.6,3828.3,0.47045]
[1761932736146,0.1372,3828.6,3828.5,0.1282]
[1761932736743,0.60762,3828.6,3828.4,4.58]
[1761932737345,3.2078,3829.0,3828.5,0.1282]
[1761932737551,3.2078,3829.0,3828.9,0.1282]
[1761932737956,0.13979962,3829.2,3828.9,0.1282]
[1761932738156,0.61013962,3829.2,3829.0,9.347]
[1761932738751,0.47037,3829.0,3828.9,9.347]
[1761932738958,0.60762,3828.6,3828.3,3.2078]
[1761932739254,0.1372,3828.0,3827.9,3.2078]
[1761932739557,0.47044,3828.4,3828.3,0.1282]
[1761932739752,0.47047,3828.2,3827.9,13.0243]
[1761932740052,0.47049,3828.0,3827.9,3.2078]
[1761932740254,1.20647992,3828.0,3827.9,3.2078]
[1761932740455,1.42967992,3828.0,3827.9,10.4298]
[1761932740755,1.20647992,3828.0,3827.9,10.4298]
[1761932741360,0.59968992,3828.0,3827.9,11.0021]
[1761932741545,1.07017992,3828.0,3827.9,10.5316]
[1761932741753,1.42967992,3828.0,3827.9,10.4298]
[1761932742352,0.73598992,3828.0,3827.9,10.4298]
[1761932742659,0.59968992,3828.0,3827.9,10.5316]
[1761932742849,1.20647992,3828.0,3827.9,10.4298]
[1761932743043,0.73598992,3828.0,3827.9,10.4298]
[1761932743245,0.1363,3828.0,3827.9,10.4298]
[1761932743556,0.1372,3828.6,3828.1,0.47048]
[1761932743557,0.47046,3828.3,3828.1,0.47048]
[1761932744055,0.1372,3828.6,3828.0,0.47048]
[1761932744251,0.47046,3828.3,3828.1,0.1018]
[1761932744551,0.1372,3828.6,3828.1,0.1018]
[1761932744757,0.1372,3828.6,3828.5,0.1018]
[1761932745161,0.4704,3828.8,3828.7,0.1018]
[1761932745458,0.47038,3828.9,3828.7,0.1018]
[1761932745755,0.47039,3828.8,3828.7,0.1018]
[1761932746157,1.87824708,3829.0,3828.7,0.1018]
[1761932746357,0.1363,3828.5,3828.4,9.346]
[1761932746553,0.60673,3828.5,3828.4,9.4478]
[1761932746861,0.82993,3828.5,3828.4,9.346]
[1761932747055,0.82993,3828.5,3827.7,3.2078]
[1761932747260,0.60679,3828.0,3827.8,4.577]
[1761932747556,0.1363,3828.0,3827.9,0.5723]
[1761932747852,0.1363,3828.0,3827.9,0.1018]
[1761932748058,0.60679,3828.0,3827.9,0.1018]
[1761932748261,0.4705,3827.9,3827.8,4.577]
[1761932748453,0.6937,3827.9,3827.8,4.577]
[1761932748763,0.69373,3827.7,3827.6,9.34662705]
[1761932748952,0.69373,3827.7,3827.6,0.00262705]
[1761932749144,0.47053,3827.7,3827.6,0.00262705]
[1761932749545,3.3441,3828.0,3827.6,0.00262705]
[1761932749745,0.47051,3827.9,3827.6,0.00262705]
[1761932749957,3.81459,3828.0,3827.7,0.47053]
[1761932750157,0.47051,3827.9,3827.6,0.00262705]
[1761932750456,0.1363,3828.0,3827.9,0.4705]
[1761932750655,3.2078,3828.4,3827.7,12.5518]
[1761932750859,3.2078,3828.4,3828.3,0.57226]
[1761932751155,0.1363,3828.5,3828.3,0.57226]
[1761932751661,0.1363,3828.5,3828.3,0.57225]
[1761932751856,0.1363,3828.5,3828.4,0.47044]
[1761932752062,3.2078,3828.8,3828.5,0.47043]
[1761932752355,3.2078,3828.8,3828.2,9.344]
[1761932752560,0.60672,3828.6,3828.3,0.47044]
[1761932752949,1.40786708,3829.1,3828.2,9.344]
[1761932753149,3.34759962,3829.2,3828.5,3.2078]
[1761932753352,0.47038,3829.0,3828.7,0.47041]
[1761932753553,0.47036,3829.1,3828.8,9.344]
[1761932753859,0.47038,3828.9,3828.8,9.344]
[1761932754063,0.47038,3829.0,3828.8,9.344]
[1761932754262,3.34759962,3829.2,3828.8,9.344]
[1761932754861,3.81794962,3829.2,3828.8,9.344]
[1761932755162,0.5953088,3829.1,3828.8,9.344]
[1761932755362,0.69358,3828.9,3828.8,9.344]
[1761932755563,0.1363,3828.6,3828.1,3.2078]
[1761932755764,0.5953088,3828.5,3828.2,9.343]
[1761932755966,1.0657488,3828.5,3828.2,9.343]
[1761932756167,0.59538883,3828.4,3828.2,9.81347]
[1761932756357,0.2232,3828.3,3828.2,9.343]
[1761932756558,0.1363,3828.6,3828.2,9.343]
[1761932756867,0.1363,3828.0,3827.9,0.4705]
[1761932757059,0.1363,3828.0,3827.9,9.8135]
[1761932757258,0.1363,3828.0,3827.9,9.9153]
[1761932757657,0.60679,3828.0,3827.9,9.343]
[1761932757867,0.82999,3828.0,3827.9,9.343]
[1761932758066,0.69373,3827.7,3827.6,0.00262705]
[1761932758265,1.28935337,3827.7,3827.6,0.00262705]
[1761932758568,0.1363,3827.5,3827.3,9.342]
[1761932758766,0.59562337,3827.4,3827.3,9.342]
[1761932759165,0.59562337,3827.4,3827.3,9.91438]
[1761932759371,1.54416708,3828.6,3828.0,0.1018]
[1761932759571,0.60672,3828.6,3828.1,9.342]
[1761932759768,0.1363,3828.6,3828.1,9.342]
[1761932759962,0.69367,3828.2,3828.1,9.342]
[1761932760465,0.2232,3828.2,3828.1,9.342]
[1761932760664,3.2078,3828.3,3828.1,9.81248]
[1761932760865,0.47044,3828.5,3828.1,9.342]
[1761932761061,0.47045,3828.4,3828.1,9.342]
[1761932761467,0.1363,3828.6,3828.1,9.342]
[1761932761762,0.47045,3828.4,3828.1,9.342]
[1761932762157,0.47046,3828.3,3828.1,9.342]
[1761932762358,0.1363,3828.6,3828.1,9.342]
[1761932762359,0.69367,3828.2,3828.1,9.342]
[1761932763767,3.2078,3828.4,3827.7,9.342]
[1761932763768,0.2232,3827.9,3827.7,9.342]
[1761932763967,0.1363,3828.0,3827.7,9.342]
[1761932763968,0.47052,3827.8,3827.7,9.342]
[1761932764364,0.1363,3828.0,3827.7,9.342]
[1761932764664,0.1363,3828.0,3827.7,9.81253]
[1761932764861,0.6068,3828.0,3827.7,9.342]
[1761932765060,0.60679,3828.0,3827.7,9.342]
[1761932765360,0.1363,3828.0,3827.7,9.81253]
[1761932765560,0.4705,3827.9,3827.7,9.342]
[1761932765757,0.1363,3828.0,3827.7,9.342]
[1761932765963,0.69372,3827.8,3827.7,9.342]
[1761932767066,0.1363,3827.4,3827.3,12.55137867]
[1761932767461,0.47051,3827.9,3827.5,0.47055]
[1761932767664,0.1363,3827.4,3827.3,12.55137867]
[1761932768163,0.1363,3827.4,3827.3,13.02195867]
[1761932768364,0.60687,3827.4,3827.3,12.55137867]
[1761932768570,0.1363,3827.4,3827.3,12.65317867]
[1761932769564,0.1363,3827.4,3827.3,13.12375867]
[1761932769766,1.87830708,3828.4,3828.3,0.1018]
[1761932769966,0.47047,3828.3,3827.9,12.5488]
[1761932770164,0.47043,3828.5,3827.9,12.5488]
[1761932770463,0.47043,3828.5,3828.1,0.47047]
[1761932770659,0.3655,3828.0,3827.7,9.341]
[1761932770867,0.3655,3828.0,3827.5,3.2078]
[1761932770868,0.83607,3827.4,3827.3,0.00257867]
[1761932771271,1.42944351,3827.4,3827.3,0.00257867]
[1761932772574,0.95887351,3827.4,3827.3,0.00257867]
[1761932772777,1.20514351,3827.4,3827.3,0.00257867]
[1761932773270,0.73457351,3827.4,3827.3,0.00257867]
[1761932773472,0.59337351,3827.4,3827.3,0.57495867]
[1761932773670,3.2078,3827.9,3827.4,0.47057]
[1761932773874,0.59316195,3827.8,3827.7,0.1018]
[1761932774074,0.59316195,3827.8,3827.6,0.47054]
[1761932774267,0.59316195,3827.7,3827.6,0.57234]
[1761932774472,0.59316195,3827.7,3827.4,9.341]
[1761932774667,0.69485,3827.5,3827.4,9.341]
[1761932774867,1.28801195,3827.5,3827.4,9.341]
[1761932775267,0.59316195,3827.5,3827.4,9.81157]
[1761932775571,0.59316195,3827.5,3827.4,9.4428]
[1761932775975,0.59316195,3827.5,3827.4,9.341]
[1761932776177,0.61177,3827.4,3827.3,0.00257867]
[1761932776472,1.20493195,3827.4,3827.3,9.34357867]
[1761932776666,1.42923195,3827.4,3827.3,9.34357867]
[1761932777067,1.42923195,3827.4,3827.3,0.00257867]
[1761932778479,0.83174,3826.8,3826.7,3.2078]
[1761932778772,0.70079,3826.4,3826.3,3.2078]
[1761932778973,0.82476448,3826.4,3826.3,3.2078]
[1761932779164,0.2301,3826.4,3826.3,3.2078]
[1761932779364,0.70079,3826.4,3826.3,3.2078]
[1761932779564,0.70355515,3826.4,3826.3,3.21034886]
[1761932779780,1.2979338,3826.4,3826.3,3.21034886]
[1761932780072,1.2979338,3826.4,3826.3,0.00254886]
[1761932781070,0.3611,3825.6,3825.5,3.2078]
[1761932781271,0.3611,3825.6,3825.5,12.5478]
[1761932781673,0.131,3825.6,3825.1,3.2078]
[1761932781867,0.47081,3825.4,3825.0,9.34]
[1761932782067,0.47084,3825.2,3825.0,9.34211411]
[1761932782266,0.47083,3825.3,3825.0,9.34211411]
[1761932782476,0.47084,3825.2,3825.0,9.34211411]
[1761932783274,0.131,3825.6,3825.0,9.34211411]
[1761932783475,0.131,3825.6,3825.3,3.2078]
[1761932783680,0.4708,3825.5,3825.0,9.34211411]
[1761932783981,0.47083,3825.3,3825.0,9.34211411]
[1761932784183,0.47084,3825.2,3825.0,9.34211411]
[1761932784369,0.47082,3825.4,3825.0,9.34211411]
[1761932784571,3.3388,3825.6,3825.0,9.34211411]
[1761932784878,3.80959,3825.6,3825.1,0.47084]
[1761932785074,3.3388,3825.6,3825.0,9.34211411]